fUST/lending_fUST_20260224
["ID","MTS","AMOUNT","RATE_DAILY","PERIOD"]
[406554439,1771938632059,-429.0,0.00020154,2]
[406554441,1771938632068,-150.192,0.00021118,2]
[406554443,1771938632077,-150.186,0.00021118,2]
[406554445,1771938632087,-498.0,0.00022494,2]
[406554447,1771938632096,-1642.963465,0.00022495,2]
[406554449,1771938632105,-252.947,0.00023154,2]
[406554451,1771938632113,-960.0,0.000235,2]
[406554454,1771938632122,-300.0,0.00023861,2]
[406554456,1771938632131,-300.0,0.00023861,2]
[406554458,1771938632140,-300.0,0.00023861,2]
[406554460,1771938632148,-78.13242948,0.00023862,2]
[406554463,1771938632160,-338.22373552,0.00023862,2]
[406554464,1771938632168,-500.0,0.00023962,2]
[406554466,1771938632179,-500.0,0.00023963,2]
[406554468,1771938632188,-489.77626448,0.00023963,2]
[406554471,1771938632199,-10.22373552,0.00023963,2]
[406554473,1771938632209,-500.0,0.00023963,2]
[406554475,1771938632218,-500.0,0.00023963,2]
[406554477,1771938632228,-500.0,0.00023963,2]
[406554479,1771938632237,-46.14412516,0.00023963,2]
[406554481,1771938632247,-453.85587484,0.00023963,2]
[406554483,1771938632256,-500.0,0.00023963,2]
[406554485,1771938632266,-500.0,0.00023963,2]
[406554486,1771938632274,-157.47860099,0.00023963,2]
[406554488,1771938632284,-500.0,0.00023963,2]
[406554490,1771938632293,-500.0,0.00023963,2]
[406554491,1771938632302,-500.0,0.00023963,2]
[406554493,1771938632311,-406.59843001,0.00023963,2]
[406554495,1771938632320,-550.0,0.00023963,2]
[406554496,1771938632329,-500.0,0.00023963,2]
[406554497,1771938632338,-500.0,0.00023963,2]
[406554498,1771938632348,-500.0,0.00023963,2]
[406554499,1771938632357,-437.53294835,0.00023963,2]
[406554500,1771938632372,-62.46705165,0.00023963,2]
[406554502,1771938632382,-500.0,0.00023963,2]
[406554503,1771938632391,-500.0,0.00023963,2]
[406554504,1771938632400,-500.0,0.00023963,2]
[406554505,1771938632409,-500.0,0.00023963,2]
[406554506,1771938632418,-500.0,0.00023963,2]
[406554507,1771938632427,-500.0,0.00023963,2]
[406554508,1771938632437,-299.10440223,0.00023963,2]
[406554509,1771938632448,-200.89559777,0.00023963,2]
[406554510,1771938632457,-500.0,0.00023963,2]
[406554511,1771938632467,-500.0,0.00023963,2]
[406554512,1771938632476,-500.0,0.00023963,2]
[406554513,1771938632486,-500.0,0.00023963,2]
[406554514,1771938632495,-500.0,0.00023963,2]
[406554515,1771938632504,-500.0,0.00023963,2]
[406554516,1771938632514,-500.0,0.00023963,2]
[406554517,1771938632524,-500.0,0.00023963,2]
[406554518,1771938632533,-500.0,0.00023963,2]
[406554519,1771938632542,-500.0,0.00023963,2]
[406554520,1771938632551,-500.0,0.00023963,2]
[406554521,1771938632561,-500.0,0.00023963,2]
[406554522,1771938632570,-240.0,0.00023963,2]
[406554523,1771938632579,-500.0,0.00023963,2]
[406554524,1771938632589,-500.0,0.00023963,2]
[406554525,1771938632598,-209.20679655,0.00023963,2]
[406554526,1771938632607,-500.0,0.00023963,2]
[406554527,1771938632617,-500.0,0.00023963,2]
[406554528,1771938632626,-500.0,0.00023963,2]
[406554529,1771938632636,-253.21873584,0.00023963,2]
[406554530,1771938632645,-520.14048516,0.00024236,2]
[406554536,1771938638197,-3.77253595,0.00024236,2]
[406554537,1771938638206,-420.0,0.0002588,2]
[406554538,1771938638216,-491.73846828,0.00028069,2]
[406554560,1771938640670,-0.90003055,0.00028069,2]
[406554569,1771938643455,-94.36150117,0.00028069,2]
[406554570,1771938643464,-635.1021118,0.00028711,2]
[406554571,1771938643554,-500.0,0.00028739,120]
[406554572,1771938643565,-500.0,0.0002874,120]
[406554573,1771938643575,-840.66050589,0.00028985,2]
[406554574,1771938643584,-416.35616494,0.00029395,2]
[406554575,1771938643593,-34.82523724,0.00029744,2]
[406554579,1771938646340,-187.61,0.00027208,2]
[406554580,1771938646350,-204.57102815,0.00029744,2]
[406554581,1771938646359,-216.122,0.0003,24]
[406554582,1771938646369,-3438.07062198,0.0003,2]
[406554583,1771938646380,-2948.24531268,0.0003,2]
[406554584,1771938646391,-629.9,0.0003,2]
[406554585,1771938646403,-18797.96300903,0.0003,2]
[406554586,1771938646412,-630.0,0.00030444,2]
[406554587,1771938646422,-3001.4,0.00031,8]
[406554588,1771938646431,-744.3517164,0.00031435,2]
[406554589,1771938646440,-500.0,0.00031813,120]
[406554590,1771938646449,-583.079687,0.00031862,2]
[406554591,1771938646458,-1048.49389317,0.00031862,2]
[406554592,1771938646468,-5191.20303737,0.00031987,2]
[406554593,1771938646477,-18792.11579075,0.00031997,2]
[406554594,1771938646488,-23924.07310326,0.00031997,2]
[406554704,1771939364548,1901.12157563,0.00042214,10]
[406554727,1771939532263,-500.0,0.00013273,2]
[406554728,1771939532285,-306.95947962,0.000158,120]
[406554733,1771939627085,-1222.15738067,0.000158,120]
[406554753,1771939729609,268.87379372,0.00042214,30]
[406554783,1771939832277,-312.26712374,0.000149,2]
[406554785,1771939832287,-300.0,0.00014999,2]
[406554787,1771939832296,-4140.83240823,0.00015,2]
[406554912,1771939838313,-3750.03809953,0.00015,2]
[406555131,1771939840630,-1125.34589103,0.00015,2]
[406555134,1771939840642,-11707.06278795,0.00015,2]
[406555473,1771939843672,-3152.7,0.00015,2]
[406555762,1771939846499,-17105.85042957,0.00015,2]
[406555777,1771939846665,-997.47333233,0.00015,2]
[406555779,1771939846675,-5669.26417803,0.00015,2]
[406555781,1771939846684,-151.78808302,0.00015,2]
[406555783,1771939846694,-4005.45530449,0.000156,2]
[406555785,1771939846703,-907.38313971,0.000158,120]
[406555787,1771939846712,-10022.42304442,0.00018,2]
[406556325,1771940015385,11797.0003181,0.00042214,120]
[406556326,1771940065239,500.0,0.00042214,120]
[406556327,1771940065475,500.0,0.00042214,120]
[406556328,1771940065718,500.0,0.00042214,120]
[406556329,1771940065957,316.11314153,0.00042214,120]
[406556330,1771940108423,160.0,0.00042214,10]
[406556334,1771940409556,160.0,0.0004221,10]
[406556339,1771940708550,161.0,0.00042555,10]
[406556340,1771940746105,-167.09381288,0.00013699,2]
[406556341,1771940746124,-315.10226625,0.00013699,2]
[406556342,1771940746144,-300.54740181,0.00014999,2]
[406556344,1771940846118,-211.54862134,0.00014999,2]
[406556345,1771940846138,-242.0,0.00015,2]
[406556346,1771940846156,-201.12,0.00015,2]
[406556347,1771940846190,-291.13844375,0.00017999,2]
[406556362,1771941032476,-5000.0,0.0001782,2]
[406556364,1771941032486,-683.0,0.0001782,2]
[406556365,1771941032498,-16400.52164137,0.00018,2]
[406556366,1771941032508,-1583.98980184,0.00021547,2]
[406556367,1771941032517,-677.0440932,0.00021647,2]
[406556368,1771941032526,-164.12740738,0.00023666,5]
[406556369,1771941032536,-744.3517164,0.00023897,2]
[406556370,1771941032546,-8532.55411434,0.00025344,2]
[406556371,1771941032556,-1692.83582989,0.00025344,2]
[406556372,1771941032566,-172.898,0.00025372,10]
[406556373,1771941032575,-98632.85771,0.00025434,2]
[406556374,1771941032589,-234541.07693108,0.00025444,2]
[406556376,1771941032601,-12845.86840901,0.00025444,2]
[406556436,1771941038628,-3725.04741771,0.00025444,2]
[406556438,1771941038642,-76725.0000002,0.00025444,2]
[406556444,1771941038691,-46730.11502239,0.00025444,2]
[406556854,1771941042860,-658.3515224,0.00025244,2]
[406556856,1771941042870,-1504.0179753,0.00025444,2]
[406556858,1771941042881,-2059.69756679,0.00025444,2]
[406556860,1771941042893,-1102.92675892,0.00025444,2]
[406556862,1771941042905,-1447.144652,0.00025444,2]
[406556995,1771941043816,-5000.0,0.0002519,2]
[406556996,1771941043826,-127.22406338,0.00025444,2]
[406556999,1771941044040,-283.374,0.00025444,2]
[406557261,1771941046563,-247.24,0.00025434,10]
[406557263,1771941046573,-3695.37278435,0.00025444,2]
[406557458,1771941061609,-2640794.85541887,0.00025444,2]
[406557459,1771941061618,-487.0,0.00025444,2]
[406557460,1771941061628,-487.0,0.00025444,2]
[406557461,1771941061637,-487.0,0.00025444,2]
[406557462,1771941061648,-487.0,0.00025444,2]
[406557463,1771941061659,-487.0,0.00025444,2]
[406557464,1771941061668,-487.0,0.00025444,2]
[406557465,1771941061678,-887.92,0.00025444,2]
[406557466,1771941061688,-31891.97,0.000255,2]
[406557467,1771941061698,-99359.18215506,0.0002599,2]
[406557468,1771941061707,-1667.68305778,0.000273,7]
[406557469,1771941061717,-4399.51256178,0.000273,7]
[406557470,1771941061728,-1414.8832403,0.000273,7]
[406557471,1771941061737,-3740765.6617,0.00027444,2]
[406557472,1771941061747,-1000.0,0.00029,14]
[406557473,1771941061756,-3366689.0955,0.00029444,2]
[406557474,1771941061766,-2000.0,0.00029673,7]
[406557475,1771941061775,-1022.9008641,0.00029818,2]
[406557476,1771941061784,-1000.0,0.0003,14]
[406557477,1771941061794,-9602.34347925,0.0003,7]
[406557478,1771941061803,-744.3517164,0.0003,7]
[406557479,1771941061813,-192.30320989,0.00030111,2]
[406557480,1771941061824,-650.03830034,0.00030111,2]
[406557481,1771941061834,-1170.06894061,0.00030111,2]
[406557482,1771941061843,-2080.12256109,0.00030111,2]
[406557483,1771941061853,-495.85318206,0.00030111,2]
[406557484,1771941061863,-444.69728248,0.00030111,2]
[406557485,1771941061873,-800.45510847,0.00030111,2]
[406557486,1771941061883,-308.117043,0.00030273,2]
[406557487,1771941061893,-204.043239,0.00030615,2]
[406557488,1771941061903,-204.043239,0.00030615,120]
[406557489,1771941061914,-1000.0,0.00031,14]
[406557490,1771941061925,-385.8291165,0.00031,10]
[406557491,1771941061936,-892.53572771,0.00031442,2]
[406557492,1771941061946,-3740765.6617,0.00031444,2]
[406557493,1771941061957,-1000.0,0.000315,14]
[406557494,1771941061966,-1000.0,0.000318,14]
[406557495,1771941061976,-1000.0,0.000319,14]
[406557496,1771941061986,-8780.11696901,0.00031997,2]
[406557497,1771941061996,-652.70612747,0.00032031,7]
[406557498,1771941062007,-1833.56685753,0.00032032,7]
[406557499,1771941062017,-2019.71635965,0.00032064,2]
[406557500,1771941062027,-166.99644198,0.00032441,2]
[406557501,1771941062036,-585.36811226,0.00033024,7]
[406557502,1771941062047,-1857.46812952,0.000333,23]
[406557503,1771941062057,-7549.02856126,0.000333,23]
[406557504,1771941062067,-3117304.7181,0.00033444,2]
[406557505,1771941062077,-31891.97,0.000335,2]
[406557506,1771941062087,-964.13124898,0.0003399,26]
[406557507,1771941062096,-11411.62039847,0.00034011,26]
[406557508,1771941062106,-6189.12299217,0.00034024,30]
[406557509,1771941062115,-156.184,0.00034144,2]
[406557510,1771941062125,-549.63665722,0.0003421,27]
[406557511,1771941062134,-1159.49185094,0.0003454,28]
[406557512,1771941062143,-200.0,0.00034768,38]
[406557513,1771941062153,-286.10143955,0.00034868,29]
[406557514,1771941062162,-500000.0,0.00035,40]
[406557515,1771941062171,-11411.62039847,0.00035073,30]
[406557516,1771941062181,-6189.12299217,0.00035127,30]
[406557517,1771941062190,-233.3844939,0.00035436,14]
[406557518,1771941062200,-155.92683071,0.00035519,30]
[406557519,1771941062210,-1183.5273712,0.00035796,30]
[406557520,1771941062219,-11411.62039847,0.00036135,30]
[406557521,1771941062228,-6189.12299217,0.0003623,30]
[406557522,1771941062238,-422.20287923,0.00036332,30]
[406557523,1771941062247,-165.07702549,0.00036973,30]
[406557524,1771941062257,-1033.40734756,0.0003703,30]
[406557525,1771941062266,-11411.62039847,0.00037197,30]
[406557526,1771941062275,-6189.12299217,0.00037332,30]
[406557527,1771941062285,-31891.97,0.000376,2]
[406557528,1771941062295,-450.85581375,0.00037795,30]
[406557529,1771941062305,-5000.0,0.00038,2]
[406557530,1771941062315,-200.0,0.00038203,45]
[406557531,1771941062325,-11411.62039847,0.00038259,30]
[406557532,1771941062335,-2502.5642,0.00038299,2]
[406557533,1771941062345,-2117.5142,0.00038299,2]
[406557534,1771941062355,-2285.1779,0.00038299,2]
[406557535,1771941062364,-351.0,0.000383,14]
[406557536,1771941062374,-688.0,0.000383,14]
[406557537,1771941062384,-351.0,0.000383,14]
[406557538,1771941062394,-688.0,0.000383,14]
[406557539,1771941062404,-363.98380452,0.000383,14]
[406557540,1771941062414,-688.0,0.000383,14]
[406557541,1771941062425,-166.0,0.000383,14]
[406557542,1771941062435,-166.0,0.000383,14]
[406557543,1771941062444,-688.0,0.000383,14]
[406557544,1771941062453,-1351.77601303,0.00038308,30]
[406557545,1771941062463,-195.323869,0.00038356,2]
[406557546,1771941062472,-195.323869,0.00038356,2]
[406557547,1771941062481,-195.323869,0.00038356,2]
[406557548,1771941062490,-195.323869,0.00038356,2]
[406557549,1771941062499,-195.323869,0.00038356,2]
[406557550,1771941062508,-195.323869,0.00038356,2]
[406557551,1771941062517,-195.323869,0.00038356,2]
[406557552,1771941062527,-195.323869,0.00038356,2]
[406557553,1771941062535,-195.323869,0.00038356,2]
[406557554,1771941062544,-195.323869,0.00038356,2]
[406557555,1771941062603,-195.323869,0.00038356,2]
[406557556,1771941062613,-195.323869,0.00038356,2]
[406557557,1771941062623,-195.323869,0.00038356,2]
[406557558,1771941062632,-195.323869,0.00038356,2]
[406557559,1771941062644,-195.323869,0.00038356,2]
[406557560,1771941062653,-195.323869,0.00038356,2]
[406557561,1771941062663,-195.323869,0.00038356,2]
[406557562,1771941062672,-195.323869,0.00038356,2]
[406557563,1771941062682,-195.323869,0.00038356,2]
[406557564,1771941062692,-195.323874,0.00038356,2]
[406557565,1771941062701,-151.0,0.00038356,2]
[406557566,1771941062710,-151.0,0.00038356,2]
[406557567,1771941062719,-151.0,0.00038356,2]
[406557568,1771941062728,-151.0,0.00038356,2]
[406557569,1771941062738,-151.0,0.00038356,2]
[406557570,1771941062747,-151.0,0.00038356,2]
[406557571,1771941062757,-151.0,0.00038356,2]
[406557572,1771941062766,-151.0,0.00038356,2]
[406557573,1771941062776,-151.0,0.00038356,2]
[406557574,1771941062785,-270.929699,0.00038356,2]
[406557575,1771941062794,-3936.76,0.000384,7]
[406557576,1771941062804,-2502.5642,0.00038436,2]
[406557577,1771941062814,-2117.5142,0.00038473,2]
[406557578,1771941062823,-2502.5642,0.00038573,2]
[406557579,1771941062833,-2117.5142,0.00038647,2]
[406557580,1771941062843,-2502.5642,0.00038709,2]
[406557581,1771941062853,-2117.5142,0.00038821,2]
[406557582,1771941062863,-2502.5642,0.00038846,2]
[406557583,1771941062873,-3117304.7181,0.00038855,2]
[406557584,1771941062883,-2502.5642,0.00038983,2]
[406557585,1771941062893,-2117.5142,0.00038995,2]
[406557586,1771941062903,-1000.0,0.00039,3]
[406557587,1771941062913,-2502.5642,0.0003912,2]
[406557588,1771941062923,-156.185,0.00039144,2]
[406557589,1771941062933,-1221.22532751,0.00039152,30]
[406557590,1771941062944,-2117.5142,0.0003917,2]
[406557591,1771941062954,-2502.5642,0.00039257,2]
[406557592,1771941062964,-2285.1779,0.00039257,2]
[406557593,1771941062973,-458.01904741,0.00039259,30]
[406557594,1771941062983,-2117.5142,0.00039344,2]
[406557595,1771941062992,-2502.5642,0.00039393,2]
[406557596,1771941063003,-2117.5142,0.00039518,2]
[406557597,1771941063012,-1447.91809407,0.00039565,30]
[406557598,1771941063022,-2502.5642,0.00039667,2]
[406557599,1771941063032,-1466.52582357,0.00039667,2]
[406557600,1771941063042,-2117.5142,0.00039692,2]
[406557601,1771941063052,-2502.5642,0.00039804,2]
[406557602,1771941063062,-1117.54138066,0.0003985,30]
[406557603,1771941063072,-2117.5142,0.00039866,2]
[406557604,1771941063082,-2502.5642,0.0003994,2]
[406557605,1771941063092,-2729.26346862,0.0004,2]
[406557606,1771941063102,-512.45461353,0.0004,120]
[406557607,1771941063113,-500000.0,0.0004,30]
[406557608,1771941063122,-15055.77990114,0.0004,12]
[406557609,1771941063132,-1000.0,0.0004,14]
[406557610,1771941063141,-5000.0,0.0004,15]
[406557611,1771941063151,-1307.09953045,0.0004,120]
[406557612,1771941063161,-1000.0,0.0004,14]
[406557613,1771941063170,-5000.0,0.0004,100]
[406557614,1771941063179,-2117.5142,0.0004004,2]
[406557615,1771941063191,-2502.5642,0.00040077,2]
[406557616,1771941063200,-2502.5642,0.00040214,2]
[406557617,1771941063212,-2117.5142,0.00040214,2]
[406557618,1771941063222,-2285.1779,0.00040214,2]
[406557619,1771941063232,-5082.65,0.00040266,120]
[406557620,1771941063241,-479.5087484,0.00040722,30]
[406557621,1771941063251,-527.38,0.00040993,120]
[406557622,1771941063260,-19322.767888,0.00041,2]
[406557623,1771941063270,-1000.0,0.00041095,2]
[406557624,1771941063280,-1000.0,0.00041095,2]
[406557625,1771941063289,-1000.0,0.00041095,2]
[406557626,1771941063299,-1000.0,0.00041095,2]
[406557627,1771941063310,-1000.0,0.00041095,2]
[406557628,1771941063320,-1000.0,0.00041095,2]
[406557629,1771941063330,-1000.0,0.00041095,2]
[406557630,1771941063339,-1000.0,0.00041095,2]
[406557631,1771941063349,-1000.0,0.00041095,2]
[406557632,1771941063359,-1000.0,0.00041095,2]
[406557633,1771941063369,-1000.0,0.00041095,2]
[406557634,1771941063379,-1000.0,0.00041095,2]
[406557635,1771941063389,-699.56078247,0.00041095,2]
[406557636,1771941063399,-152.6098293,0.00041095,2]
[406557637,1771941063408,-500.0,0.00041095,2]
[406557638,1771941063418,-500.0,0.00041095,2]
[406557639,1771941063428,-445.12745986,0.00041095,2]
[406557640,1771941063439,-300.0,0.00041095,2]
[406557641,1771941063448,-300.0,0.00041095,2]
[406557642,1771941063458,-346.10740933,0.00041095,2]
[406557643,1771941063467,-6416.56,0.00041095,120]
[406557644,1771941063476,-500.0,0.00041095,2]
[406557645,1771941063486,-503.52457286,0.00041095,2]
[406557646,1771941063496,-1000.0,0.00041095,2]
[406557647,1771941063505,-1000.0,0.00041095,2]
[406557648,1771941063515,-1000.0,0.00041095,2]
[406557649,1771941063525,-1000.0,0.00041095,2]
[406557650,1771941063534,-1000.0,0.00041095,2]
[406557651,1771941063544,-1000.0,0.00041095,2]
[406557652,1771941063554,-1000.0,0.00041095,2]
[406557653,1771941063563,-791.76363407,0.00041095,2]
[406557654,1771941063619,-50000.0,0.00041096,120]
[406557655,1771941063629,-155.93,0.000411,30]
[406557656,1771941063641,-1033.29,0.000411,30]
[406557657,1771941063650,-1444.31,0.000411,14]
[406557658,1771941063660,-31891.97,0.000412,2]
[406557659,1771941063672,-12138.0206015,0.000415,2]
[406557660,1771941063683,-500.0,0.0004155,60]
[406557661,1771941063692,-161.0,0.00041817,11]
[406557662,1771941063702,-300.0,0.0004199,2]
[406557663,1771941063711,-300.0,0.0004199,3]
[406557664,1771941063721,-300.0,0.00042,2]
[406557665,1771941063730,-200.0,0.00042,120]
[406557666,1771941063739,-1000.0,0.00042,30]
[406557667,1771941063749,-250.0,0.00042,60]
[406557668,1771941063758,-5000.0,0.00042,120]
[406557669,1771941063768,-250.0,0.00042,30]
[406557670,1771941063777,-3936.76,0.00042,14]
[406557671,1771941063787,-250.0,0.00042,10]
[406557672,1771941063796,-402.0,0.00042139,16]
[406557673,1771941063806,-508.16168304,0.00042186,30]
[406557674,1771941063815,-946.68793688,0.00042202,60]
[406557675,1771941063826,-170.0,0.00042205,10]
[406557676,1771941063836,-2748.96649851,0.0004221,10]
[406557677,1771941063846,-303.41,0.0004221,7]
[406557678,1771941063856,-2000.0,0.0004221,10]
[406557679,1771941063865,-2966.45,0.00042212,10]
[406557680,1771941063875,-418.69,0.00042212,10]
[406557681,1771941063885,-2436.86,0.00042212,10]
[406557682,1771941063895,-2188.0,0.00042212,10]
[406557683,1771941063904,-165.0,0.00042214,14]
[406557684,1771941063914,-227.67564831,0.00042214,14]
[406557685,1771941063925,-527.38,0.00042322,120]
[406557686,1771941063936,-500.0,0.00042379,2]
[406557687,1771941063946,-734.49377055,0.00042391,14]
[406557688,1771941063956,-982.48,0.00042399,120]
[406557689,1771941063965,-800.0,0.00042406,14]
[406557690,1771941063975,-4359.0,0.00042456,10]
[406557691,1771941063985,-800.0,0.00042461,14]
[406557692,1771941063994,-160.0,0.00042472,5]
[406557693,1771941064004,-800.0,0.00042487,14]
[406557694,1771941064014,-200.731976,0.000425,2]
[406557695,1771941064023,-211.61,0.000425,10]
[406557696,1771941064033,-4305.0,0.00042555,7]
[406557697,1771941064043,-50024.32799817,0.00042555,2]
[406557698,1771941064052,-92459.48983707,0.00042555,2]
[406557699,1771941064063,-7516.18216476,0.00042555,2]
[406557700,1771941064073,-20019.79772546,0.00042555,2]
[406557701,1771941064083,-28952.96314547,0.00042555,2]
[406557702,1771941064094,-21839.45535111,0.00042555,2]
[406557703,1771941064105,-6376.31580275,0.00042555,2]
[406557704,1771941064115,-30838.15963904,0.00042555,2]
[406557705,1771941064125,-179479.08263567,0.00042555,2]
[406557706,1771941064135,-20159.87621265,0.00042555,2]
[406557707,1771941064145,-55990.55565468,0.00042555,2]
[406557708,1771941064157,-64653.9134285,0.00042555,2]
[406557709,1771941064175,-199.0,0.00042555,2]
[406557710,1771941064185,-198.59832055,0.00042555,2]
[406557711,1771941064196,-1224.39955832,0.00042555,2]
[406557712,1771941064206,-25000.0,0.00042555,4]
[406557713,1771941064216,-999.0,0.00042555,7]
[406557714,1771941064225,-197.80478532,0.00042555,5]
[406557715,1771941064235,-368.82525492,0.00042555,7]
[406557716,1771941064245,-983.14287978,0.00042555,7]
[406557717,1771941064254,-610.69255877,0.00042555,5]
[406557718,1771941064264,-199.999999,0.00042555,2]
[406557719,1771941064274,-150.0,0.00042555,2]
[406557720,1771941064283,-500.0,0.00042555,2]
[406557721,1771941064295,-500.0,0.00042555,2]
[406557722,1771941064316,-500.0,0.00042555,2]
[406557723,1771941064326,-500.0,0.00042555,2]
[406557724,1771941064336,-500.0,0.00042555,2]
[406557725,1771941064346,-500.0,0.00042555,2]
[406557726,1771941064356,-500.0,0.00042555,2]
[406557727,1771941064366,-500.0,0.00042555,2]
[406557728,1771941064376,-500.0,0.00042555,2]
[406557729,1771941064385,-540.05657967,0.00042555,2]
[406557730,1771941064395,-341.48,0.00042555,2]
[406557731,1771941064406,-403.75,0.00042555,30]
[406557732,1771941064415,-1000.0,0.00042555,10]
[406557733,1771941064425,-1000.0,0.00042555,10]
[406557734,1771941064438,-1000.0,0.00042555,10]
[406557735,1771941064448,-1000.0,0.00042555,10]
[406557736,1771941064458,-1000.0,0.00042555,10]
[406557737,1771941064467,-1000.0,0.00042555,10]
[406557738,1771941064477,-1000.0,0.00042555,10]
[406557739,1771941064486,-1000.0,0.00042555,10]
[406557740,1771941064496,-1000.0,0.00042555,10]
[406557741,1771941064505,-1000.0,0.00042555,10]
[406557742,1771941064515,-1000.0,0.00042555,10]
[406557743,1771941064524,-1000.0,0.00042555,10]
[406557744,1771941064534,-1000.0,0.00042555,10]
[406557745,1771941064588,-1000.0,0.00042555,10]
[406557746,1771941064606,-1000.0,0.00042555,10]
[406557747,1771941064615,-1000.0,0.00042555,10]
[406557748,1771941064626,-1000.0,0.00042555,10]
[406557749,1771941064637,-1000.0,0.00042555,10]
[406557750,1771941064647,-1000.0,0.00042555,10]
[406557751,1771941064657,-1000.0,0.00042555,10]
[406557752,1771941064667,-1000.0,0.00042555,10]
[406557753,1771941064678,-1000.0,0.00042555,10]
[406557754,1771941064690,-1000.0,0.00042555,10]
[406557755,1771941064699,-1000.0,0.00042555,10]
[406557756,1771941064709,-1000.0,0.00042555,10]
[406557757,1771941064719,-1000.0,0.00042555,10]
[406557758,1771941064729,-1000.0,0.00042555,10]
[406557759,1771941064739,-1000.0,0.00042555,10]
[406557760,1771941064751,-1000.0,0.00042555,10]
[406557761,1771941064761,-1000.0,0.00042555,10]
[406557762,1771941064771,-1000.0,0.00042555,10]
[406557763,1771941064781,-1000.0,0.00042555,10]
[406557764,1771941064791,-1000.0,0.00042555,10]
[406557765,1771941064800,-1000.0,0.00042555,10]
[406557766,1771941064809,-1000.0,0.00042555,10]
[406557767,1771941064819,-1000.0,0.00042555,10]
[406557768,1771941064829,-1000.0,0.00042555,10]
[406557769,1771941064839,-1000.0,0.00042555,10]
[406557770,1771941064852,-1000.0,0.00042555,10]
[406557771,1771941064861,-1000.0,0.00042555,10]
[406557772,1771941064871,-1000.0,0.00042555,10]
[406557773,1771941064881,-1000.0,0.00042555,10]
[406557774,1771941064892,-1000.0,0.00042555,10]
[406557775,1771941064903,-1000.0,0.00042555,10]
[406557776,1771941064912,-1000.0,0.00042555,10]
[406557777,1771941064921,-1000.0,0.00042555,10]
[406557778,1771941064931,-1000.0,0.00042555,10]
[406557779,1771941064943,-1000.0,0.00042555,10]
[406557780,1771941064953,-1000.0,0.00042555,10]
[406557781,1771941064963,-1000.0,0.00042555,10]
[406557782,1771941064973,-1000.0,0.00042555,10]
[406557783,1771941064983,-1000.0,0.00042555,10]
[406557784,1771941064993,-1000.0,0.00042555,10]
[406557785,1771941065003,-1000.0,0.00042555,10]
[406557786,1771941065013,-1000.0,0.00042555,10]
[406557787,1771941065022,-1000.0,0.00042555,10]
[406557788,1771941065032,-1000.0,0.00042555,10]
[406557789,1771941065041,-1000.0,0.00042555,10]
[406557790,1771941065051,-1000.0,0.00042555,10]
[406557791,1771941065060,-1000.0,0.00042555,10]
[406557792,1771941065070,-1000.0,0.00042555,10]
[406557793,1771941065079,-1000.0,0.00042555,10]
[406557794,1771941065089,-1000.0,0.00042555,10]
[406557795,1771941065098,-1000.0,0.00042555,10]
[406557796,1771941065108,-1000.0,0.00042555,10]
[406557797,1771941065117,-892.0,0.00042555,10]
[406557798,1771941065126,-2000.0,0.00042555,10]
[406557799,1771941065136,-156.26570524,0.00042555,14]
[406557800,1771941065145,-202.67,0.000426,120]
[406557801,1771941065158,-481.13427748,0.00042639,30]
[406557802,1771941065168,-1285.80944686,0.00042669,30]
[406557803,1771941065177,-193.64385108,0.00042698,120]
[406557804,1771941065188,-181.40180482,0.00042789,30]
[406557805,1771941065198,-1585.44193887,0.00043025,30]
[406557806,1771941065207,-1444.31,0.000434,14]
[406557807,1771941065217,-6000.0,0.00043555,30]